fUSD/lending_fUSD_20260111
["ID","MTS","AMOUNT","RATE_DAILY","PERIOD"]
[401379923,1768168244151,-193.11,0.00017268,2]
[401379926,1768168244161,-496.45188591,0.00017273,2]
[401379928,1768168244170,-418.10261487,0.00017273,2]
[401379929,1768168244179,-2171.6,0.00017275,2]
[401379932,1768168244190,-150.0,0.0001728,2]
[401379934,1768168244199,-496.45188591,0.00017291,2]
[401379936,1768168244208,-39100.0,0.000173,6]
[401379938,1768168244217,-150.0,0.00017308,2]
[401379940,1768168244227,-496.45188591,0.00017309,2]
[401379942,1768168244237,-150.0,0.00017325,2]
[401379944,1768168244246,-496.45188591,0.00017327,2]
[401379946,1768168244255,-150.0,0.00017337,2]
[401379947,1768168244265,-2171.6,0.00017341,2]
[401379949,1768168244274,-150.0,0.00017345,2]
[401379952,1768168244284,-496.45188591,0.00017345,2]
[401379953,1768168244293,-496.45188591,0.00017364,2]
[401379956,1768168244303,-496.45188591,0.00017382,2]
[401379957,1768168244311,-356.44035564,0.00017391,2]
[401379959,1768168244321,-150.0,0.000174,2]
[401379962,1768168244330,-150.0,0.000174,2]
[401379964,1768168244339,-150.0,0.000174,2]
[401379966,1768168244349,-150.0,0.000174,2]
[401379968,1768168244358,-150.0,0.000174,2]
[401379970,1768168244368,-496.45188591,0.000174,2]
[401379972,1768168244377,-150.0,0.000174,2]
[401379974,1768168244386,-150.0,0.000174,2]
[401379976,1768168244396,-48900.0,0.000174,6]
[401379978,1768168244405,-2171.6,0.00017407,2]
[401379980,1768168244415,-496.45188591,0.00017418,2]
[401379982,1768168244423,-150.0,0.00017432,2]
[401379984,1768168244432,-496.45188591,0.00017436,2]
[401379986,1768168244442,-150.0,0.00017437,2]
[401379988,1768168244451,-150.0,0.00017446,2]
[401379990,1768168244460,-496.45188591,0.00017455,2]
[401379992,1768168244469,-158.9254365,0.00017469,2]
[401379994,1768168244478,-496.45188591,0.00017473,2]
[401379996,1768168244487,-2171.6,0.00017473,2]
[401379998,1768168244496,-496.45188591,0.00017491,2]
[401380000,1768168244505,-2000.0,0.000175,2]
[401380002,1768168244514,-9700.0,0.000175,6]
[401380004,1768168244523,-180.0,0.00017501,2]
[401380006,1768168244533,-16321.49556416,0.00017507,2]
[401380008,1768168244541,-150.0,0.00017509,2]
[401380010,1768168244550,-496.45188591,0.00017509,2]
[401380012,1768168244560,-150.0,0.0001752,2]
[401380013,1768168244569,-1089.8409,0.00017521,2]
[401380015,1768168244578,-150.0,0.00017526,2]
[401380016,1768168244587,-496.45188591,0.00017527,2]
[401380018,1768168244597,-1011.20104298,0.00017534,2]
[401380020,1768168244606,-2171.6,0.00017539,2]
[401380022,1768168244615,-496.45188591,0.00017545,2]
[401380023,1768168244625,-150.0,0.0001755,2]
[401380025,1768168244634,-150.0,0.0001755,2]
[401380027,1768168244643,-150.0,0.0001755,2]
[401380028,1768168244654,-496.45188591,0.00017564,2]
[401380030,1768168244663,-496.45188591,0.00017582,2]
[401380032,1768168244672,-150.0,0.00017585,2]
[401380034,1768168244681,-500.0,0.00017589,2]
[401380035,1768168244691,-150.0,0.000176,2]
[401380037,1768168244699,-496.45188591,0.000176,2]
[401380039,1768168244709,-9700.0,0.000176,6]
[401380040,1768168244718,-2171.6,0.00017605,2]
[401380042,1768168244727,-180.0,0.00017609,2]
[401380044,1768168244736,-950.0,0.00017616,2]
[401380045,1768168244745,-150.0,0.00017616,2]
[401380047,1768168244754,-160.46630744,0.00017616,2]
[401380049,1768168244763,-500.0,0.00017616,2]
[401380050,1768168244772,-500.0,0.00017616,2]
[401380052,1768168244782,-878.0,0.00017616,2]
[401380054,1768168244791,-162.20729527,0.00017616,2]
[401380056,1768168244801,-150.0,0.00017616,2]
[401380057,1768168244810,-150.0,0.00017616,2]
[401380059,1768168244819,-150.0,0.00017616,2]
[401380061,1768168244828,-500.0,0.00017616,2]
[401380062,1768168244837,-496.45188591,0.00017618,2]
[401380064,1768168244847,-500.0,0.00017621,2]
[401380066,1768168244856,-634.0403311,0.00017621,2]
[401380068,1768168244866,-791.14417023,0.00017621,2]
[401380070,1768168244875,-1000.66892907,0.00017621,2]
[401380071,1768168244884,-1000.91201932,0.00017621,2]
[401380073,1768168244894,-1000.0,0.00017621,2]
[401380075,1768168244903,-1000.0,0.00017621,2]
[401380076,1768168244912,-500.45639995,0.00017621,2]
[401380078,1768168244922,-500.0,0.00017621,2]
[401380080,1768168244931,-812.9434502,0.00017621,2]
[401380082,1768168244940,-500.0,0.00017621,2]
[401380083,1768168244949,-369.06072474,0.00017621,2]
[401380085,1768168244958,-1000.0,0.00017621,2]
[401380087,1768168244967,-500.0,0.00017621,2]
[401380089,1768168244976,-1000.0,0.00017621,2]
[401380091,1768168244987,-647.0605734,0.00017621,2]
[401380093,1768168244997,-1000.73774285,0.00017621,2]
[401380095,1768168245013,-1000.78603367,0.00017621,2]
[401380097,1768168245024,-1000.88678731,0.00017621,2]
[401380098,1768168245034,-1001.18596631,0.00017621,2]
[401380100,1768168245044,-1000.0,0.00017621,2]
[401380102,1768168245054,-1000.0,0.00017621,2]
[401380104,1768168245065,-1000.0,0.00017621,2]
[401380106,1768168245080,-914.52858729,0.00017621,2]
[401380107,1768168245090,-500.0,0.00017621,2]
[401380109,1768168245100,-1000.0,0.00017621,2]
[401380110,1768168245110,-1000.0,0.00017621,2]
[401380112,1768168245120,-1000.0,0.00017621,2]
[401380114,1768168245130,-150.0,0.00017621,2]
[401380116,1768168245140,-180.0,0.00017636,2]
[401380118,1768168245150,-496.45188591,0.00017636,2]
[401380119,1768168245160,-150.0,0.0001764,2]
[401380121,1768168245169,-1877.90563297,0.0001764,2]
[401380123,1768168245178,-553.64373807,0.00017647,2]
[401380125,1768168245187,-496.45188591,0.00017655,2]
[401380126,1768168245197,-150.0,0.00017662,2]
[401380128,1768168245207,-2171.6,0.0001767,2]
[401380130,1768168245217,-950.0,0.00017671,2]
[401380132,1768168245226,-150.0,0.00017671,2]
[401380133,1768168245236,-500.0,0.00017671,2]
[401380136,1768168245246,-500.0,0.00017671,2]
[401380138,1768168245256,-878.0,0.00017671,2]
[401380140,1768168245270,-208.30307507,0.00017671,2]
[401380142,1768168245280,-150.0,0.00017671,2]
[401380144,1768168245289,-500.0,0.00017671,2]
[401380145,1768168245299,-150.0,0.00017673,2]
[401380147,1768168245308,-496.45188591,0.00017673,2]
[401380149,1768168245317,-834.0,0.0001768,2]
[401380151,1768168245326,-162.0,0.0001768,2]
[401380152,1768168245336,-160.93,0.00017685,2]
[401380154,1768168245346,-496.45188591,0.00017691,2]
[401380156,1768168245355,-180.0,0.00017691,2]
[401380158,1768168245364,-250.0,0.00017696,2]
[401380159,1768168245374,-150.0,0.000177,2]
[401380161,1768168245383,-150.0,0.000177,2]
[401380163,1768168245393,-1000.0,0.000177,2]
[401380165,1768168245402,-9700.0,0.000177,6]
[401380166,1768168245412,-500.0,0.00017708,2]
[401380168,1768168245422,-496.45188591,0.00017709,2]
[401380170,1768168245431,-150.0,0.00017716,2]
[401380172,1768168245440,-160.92466927,0.00017722,2]
[401380173,1768168245450,-150.0,0.00017723,2]
[401380175,1768168245460,-950.0,0.00017726,2]
[401380177,1768168245469,-500.0,0.00017726,2]
[401380179,1768168245479,-517.05568559,0.00017726,2]
[401380181,1768168245489,-878.0,0.00017726,2]
[401380182,1768168245498,-150.0,0.00017726,2]
[401380184,1768168245510,-500.0,0.00017726,2]
[401380186,1768168245520,-496.45188591,0.00017727,2]
[401380188,1768168245529,-1000.0,0.00017729,2]
[401380190,1768168245538,-1000.0,0.00017736,2]
[401380192,1768168245547,-2171.6,0.00017736,2]
[401380194,1768168245557,-496.45188591,0.00017745,2]
[401380195,1768168245566,-180.0,0.0001776,2]
[401380196,1768168245575,-150.0,0.0001776,2]
[401380197,1768168245584,-1000.0,0.0001776,2]
[401380198,1768168245593,-496.45188591,0.00017764,2]
[401380199,1768168245603,-150.0,0.00017775,2]
[401380200,1768168245612,-950.0,0.0001778,2]
[401380201,1768168245621,-500.0,0.0001778,2]
[401380202,1768168245630,-878.0,0.0001778,2]
[401380203,1768168245639,-500.0,0.0001778,2]
[401380204,1768168245648,-496.45188591,0.00017782,2]
[401380205,1768168245657,-1080.07034757,0.00017786,2]
[401380206,1768168245667,-469.73455352,0.00017786,2]
[401380207,1768168245676,-1000.0,0.00017788,2]
[401380209,1768168245685,-330.14190427,0.00017788,2]
[401380210,1768168245694,-1000.0,0.00017796,2]
[401380212,1768168245703,-150.0,0.000178,2]
[401380214,1768168245712,-496.45188591,0.000178,2]
[401380216,1768168245721,-1000.0,0.000178,2]
[401380218,1768168245730,-9700.0,0.000178,6]
[401380220,1768168245739,-2171.6,0.00017802,2]
[401380222,1768168245748,-225.24725282,0.00017807,2]
[401380224,1768168245758,-1000.0,0.00017809,2]
[401380226,1768168245767,-150.0,0.00017811,2]
[401380228,1768168245777,-1000.0,0.00017811,2]
[401380230,1768168245786,-496.45188591,0.00017818,2]
[401380232,1768168245795,-1952.54326,0.0001782,2]
[401380234,1768168245804,-1952.54326,0.0001782,2]
[401380236,1768168245813,-1952.54326,0.0001783,2]
[401380238,1768168245822,-180.0,0.00017832,2]
[401380240,1768168245831,-950.0,0.00017835,2]
[401380242,1768168245841,-500.0,0.00017835,2]
[401380244,1768168245851,-878.0,0.00017835,2]
[401380246,1768168245860,-500.0,0.00017835,2]
[401380248,1768168245869,-150.0,0.00017836,2]
[401380250,1768168245879,-496.45188591,0.00017836,2]
[401380252,1768168245888,-1901.78950089,0.00017842,2]
[401380254,1768168245897,-231.90025202,0.00017842,2]
[401380256,1768168245906,-234.23629977,0.00017842,2]
[401380258,1768168245915,-330.14190427,0.00017844,2]
[401380260,1768168245924,-180.0,0.00017848,2]
[401380262,1768168245934,-1000.0,0.00017848,2]
[401380264,1768168245943,-150.0,0.0001785,2]
[401380266,1768168245952,-1000.0,0.00017853,2]
[401380268,1768168245961,-1000.0,0.00017854,2]
[401380270,1768168245971,-496.45188591,0.00017855,2]
[401380272,1768168245980,-200.0,0.00017856,2]
[401380274,1768168245990,-1000.0,0.00017858,2]
[401380276,1768168245998,-1952.54326,0.0001786,2]
[401380278,1768168246008,-150.0,0.00017862,2]
[401380280,1768168246018,-2480.0,0.00017862,2]
[401380282,1768168246027,-1000.0,0.00017862,2]
[401380284,1768168246036,-2171.6,0.00017868,2]
[401380286,1768168246045,-496.45188591,0.00017873,2]
[401380288,1768168246054,-1000.0,0.00017874,2]
[401380290,1768168246063,-1000.0,0.00017875,2]
[401380292,1768168246075,-150.0,0.0001788,2]
[401380294,1768168246085,-1952.54326,0.0001788,2]
[401380296,1768168246094,-2480.0,0.0001788,2]
[401380297,1768168246103,-483.45132522,0.00017887,2]
[401380299,1768168246112,-150.0,0.00017887,2]
[401380301,1768168246122,-1000.0,0.00017889,2]
[401380303,1768168246131,-950.0,0.0001789,2]
[401380305,1768168246140,-500.0,0.0001789,2]
[401380307,1768168246151,-878.0,0.0001789,2]
[401380309,1768168246159,-500.0,0.0001789,2]
[401380311,1768168246169,-496.45188591,0.00017891,2]
[401380313,1768168246178,-25000.0,0.00017891,3]
[401380315,1768168246187,-157.14731633,0.00017899,2]
[401380317,1768168246196,-25000.0,0.000179,3]
[401380319,1768168246205,-1037.8667,0.000179,2]
[401380321,1768168246214,-330.14190427,0.000179,2]
[401380323,1768168246224,-16321.49556416,0.000179,2]
[401380325,1768168246233,-955.36169617,0.000179,2]
[401380327,1768168246242,-955.36169617,0.000179,2]
[401380329,1768168246251,-955.36169617,0.000179,2]
[401380331,1768168246260,-955.36169617,0.000179,2]
[401380333,1768168246269,-955.36169617,0.000179,2]
[401380335,1768168246278,-955.36169617,0.000179,2]
[401380337,1768168246287,-955.36169617,0.000179,2]
[401380339,1768168246296,-955.36169617,0.000179,2]
[401380341,1768168246305,-10518.0,0.000179,6]
[401380343,1768168246316,-955.36169617,0.000179,2]
[401380345,1768168246325,-4035.95968706,0.000179,3]
[401380347,1768168246334,-1000.0,0.000179,2]
[401380349,1768168246344,-791.45935323,0.000179,3]
[401380351,1768168246353,-418.10261487,0.000179,2]
[401380354,1768168246367,-294.7401385,0.000179,2]
[401380355,1768168246376,-9838.0,0.000179,2]
[401380358,1768168246385,-150.0,0.00017905,2]
[401380360,1768168246395,-496.45188591,0.00017909,2]
[401380362,1768168246405,-1952.54326,0.0001791,2]
[401380364,1768168246414,-1000.0,0.00017913,2]
[401380366,1768168246423,-1000.0,0.00017918,2]
[401380367,1768168246432,-1000.0,0.00017922,2]
[401380369,1768168246442,-496.45188591,0.00017927,2]
[401380371,1768168246451,-1000.0,0.00017929,2]
[401380373,1768168246461,-1000.0,0.00017931,2]
[401380375,1768168246471,-2171.6,0.00017934,2]
[401380377,1768168246480,-1000.0,0.00017938,2]
[401380379,1768168246489,-950.0,0.00017945,2]
[401380381,1768168246499,-500.0,0.00017945,2]
[401380383,1768168246508,-878.0,0.00017945,2]
[401380385,1768168246518,-500.0,0.00017945,2]
[401380387,1768168246527,-496.45188591,0.00017945,2]
[401380389,1768168246537,-1000.0,0.00017947,2]
[401380391,1768168246547,-1000.0,0.00017947,2]
[401380394,1768168246556,-668.0,0.00017947,2]
[401380396,1768168246565,-150.0,0.00017956,2]
[401380398,1768168246574,-1000.0,0.00017957,2]
[401380400,1768168246584,-496.45188591,0.00017964,2]
[401380401,1768168246593,-1000.0,0.00017965,2]
[401380403,1768168246602,-552.982,0.00017968,2]
[401380406,1768168246611,-28016.0,0.00017973,2]
[401380407,1768168246620,-500.0,0.00017973,2]
[401380409,1768168246631,-500.0,0.00017973,2]
[401380412,1768168246640,-500.0,0.00017973,2]
[401380414,1768168246649,-500.0,0.00017973,2]
[401380415,1768168246658,-380.05360747,0.00017973,2]
[401380418,1768168246667,-500.0,0.00017973,2]
[401380419,1768168246677,-500.0,0.00017973,2]
[401380422,1768168246686,-500.0,0.00017973,2]
[401380424,1768168246695,-500.0,0.00017973,2]
[401380426,1768168246704,-500.0,0.00017973,2]
[401380427,1768168246714,-500.0,0.00017973,2]
[401380429,1768168246723,-500.0,0.00017973,2]
[401380431,1768168246733,-500.0,0.00017973,2]
[401380433,1768168246743,-500.0,0.00017973,2]
[401380435,1768168246752,-500.0,0.00017973,2]
[401380437,1768168246762,-500.0,0.00017973,2]
[401380440,1768168246771,-500.0,0.00017973,2]
[401380442,1768168246781,-498.39272947,0.00017973,2]
[401380444,1768168246790,-500.0,0.00017973,2]
[401380445,1768168246799,-500.0,0.00017973,2]
[401380448,1768168246809,-500.0,0.00017973,2]
[401380450,1768168246819,-500.0,0.00017973,2]
[401380452,1768168246828,-1000.0,0.00017973,2]
[401380454,1768168246837,-2480.0,0.00017976,2]
[401380456,1768168246846,-496.45188591,0.00017982,2]
[401380458,1768168246855,-500.0,0.00017982,2]
[401380460,1768168246864,-1000.0,0.00017983,2]
[401380462,1768168246874,-1000.0,0.00017984,2]
[401380464,1768168246883,-1000.0,0.00017984,2]
[401380466,1768168246892,-8794.4111272,0.00017988,2]
[401380468,1768168246902,-150.0,0.0001799,2]
[401380470,1768168246911,-930.25806929,0.0001799,2]
[401380472,1768168246920,-930.25806929,0.0001799,2]
[401380474,1768168246929,-300.0,0.00017999,2]
[401380476,1768168246939,-300.0,0.00017999,2]
[401380478,1768168246947,-300.0,0.00017999,2]
[401380480,1768168246957,-673.04563665,0.00017999,2]
[401380482,1768168246966,-950.0,0.00018,2]
[401380484,1768168246975,-500.0,0.00018,2]
[401380485,1768168246984,-878.0,0.00018,2]
[401380488,1768168246993,-150.0,0.00018,2]
[401380490,1768168247002,-150.0,0.00018,2]
[401380491,1768168247011,-150.0,0.00018,2]
[401380493,1768168247020,-150.0,0.00018,2]
[401380496,1768168247030,-150.0,0.00018,2]
[401380498,1768168247039,-150.0,0.00018,2]
[401380499,1768168247049,-150.0,0.00018,2]
[401380501,1768168247060,-150.0,0.00018,2]
[401380503,1768168247070,-150.0,0.00018,2]
[401380506,1768168247084,-496.45188591,0.00018,2]
[401380507,1768168247094,-150.0,0.00018,2]
[401380510,1768168247103,-150.0,0.00018,2]
[401380512,1768168247112,-1284552.02217879,0.00018,2]
[401380513,1768168247123,-671786.19766892,0.00018,2]
[401380516,1768168247133,-11021.28610397,0.00018,2]
[401380518,1768168247142,-851159.15216722,0.00018,2]
[401380521,1768168247170,-1939.29806479,0.00018,2]
[401380564,1768168247527,-1.7e-07,0.00018,2]
[401380567,1768168247547,-500.0,0.00018,2]
[401380569,1768168247556,-114.76149236,0.00018,2]
[401380571,1768168247567,-6317.2535435,0.00018,2]
[401380573,1768168247578,-403.088,0.00018,2]
[401380717,1768168248980,-151.0,0.00015275,2]
[401380719,1768168248989,-1138.69382742,0.00018,2]
[401380721,1768168249001,-978.26568528,0.00018,2]
[401380724,1768168249013,-998.9063611,0.00018,2]
[401380726,1768168249025,-1576.86513411,0.00018,2]
[401380728,1768168249035,-539.44516753,0.00018,2]
[401380730,1768168249047,-758.76275655,0.00018,2]
[401380739,1768168249126,-608568.6652859,0.00018,2]
[401380741,1768168249138,-744.66170041,0.00018,2]
[401380743,1768168249151,-1688.54009619,0.00018,2]
[401380746,1768168249162,-25225.28909148,0.00018,2]
[401380750,1768168249193,-454.54933519,0.00018,2]
[401380752,1768168249204,-904.64662748,0.00018,2]
[401380754,1768168249215,-7693.27459566,0.00018,2]
[401380757,1768168249228,-4659.54805577,0.00018,2]
[401380759,1768168249240,-44468.57517599,0.00018,2]
[401380763,1768168249274,-931.0371204,0.00018,2]
[401380772,1768168249354,-151.0,0.00015275,2]
[401380775,1768168249364,-1325.27309029,0.00018,2]
[401380782,1768168249422,-24.72354226,0.00018,2]
[401380784,1768168249433,-7926.651235,0.00018,2]
[401380786,1768168249445,-4792.65295737,0.00018,2]
[401380788,1768168249456,-1422.70792749,0.00018,2]
[401380791,1768168249467,-1067.36294816,0.00018,2]
[401381002,1768168407955,1900.0,0.000139,5]
[401381003,1768168444835,6300.0,0.000139,5]
[401381004,1768168787805,175.849,0.00013808,2]
[401381005,1768168787842,2756.601,0.00013808,2]
[401381008,1768168811732,3373.42,0.00014164,14]
[401381009,1768168865699,-300.0,0.00013989,2]
[401381010,1768168865722,-239.91571045,0.0001399,2]
[401381011,1768168870101,-184.46511752,0.00013989,2]
[401381012,1768169083457,500.0,0.00013739,2]
[401381013,1768169121369,170.13,0.00010991,2]
[401381014,1768169224716,7900.0,0.000138,5]
[401381015,1768169226808,15800.0,0.000139,5]
[401381016,1768169243397,155.67,7.005e-05,2]
[401381017,1768169243938,155.67,7.678e-05,2]
[401381018,1768169244031,155.67,8.351e-05,2]
[401381019,1768169244198,155.67,9.024e-05,2]
[401381020,1768169244401,155.67,9.697e-05,2]
[401381021,1768169244631,155.67,0.0001037,2]
[401381022,1768169244845,155.67,0.00011043,2]
[401381023,1768169245069,155.67,0.00011716,2]
[401381024,1768169245274,155.67,0.00012389,2]
[401381025,1768169245501,155.67,0.00013062,2]
[401381026,1768169245711,155.67,0.00013735,2]
[401381027,1768169255595,-714.30390765,0.00013989,2]
[401381028,1768169270565,-273.0,0.00013989,2]
[401381029,1768169295562,-212.69609235,0.00013989,2]
[401381030,1768169295585,-300.0,0.00013989,2]
[401381031,1768169295610,-300.0,0.00013989,2]
[401381032,1768169295633,-300.0,0.00013989,2]
[401381033,1768169295662,-195.0,0.00013989,2]
[401381034,1768169295686,-209.36817445,0.00013989,2]
[401381035,1768169295709,-298.39964766,0.00013989,2]
[401381036,1768169295732,-1157.3201,0.0001399,2]
[401381037,1768169295753,-236.6425,0.0001399,2]
[401381038,1768169295775,-298.39964766,0.0001399,2]
[401381039,1768169295798,-298.39964766,0.0001399,2]
[401381040,1768169295820,-2500.0,0.0001399,2]
[401381041,1768169295846,-15536.747108,0.0001399,2]
[401381042,1768169295868,-1544.2,0.00014081,2]
[401381043,1768169295888,-200.0,0.00014081,2]
[401381044,1768169295909,-500.0,0.00014081,2]
[401381045,1768169295931,-500.0,0.00014081,2]
[401381046,1768169295954,-287.86624911,0.00014081,2]
[401381047,1768169295984,-500.0,0.00014081,2]
[401381048,1768169296007,-500.0,0.00014081,2]
[401381049,1768169296029,-500.0,0.00014081,2]
[401381050,1768169296051,-399.62525577,0.00014081,2]
[401381051,1768169296075,-626.22881488,0.00014081,2]
[401381052,1768169296096,-200.0,0.00014081,2]
[401381053,1768169296118,-151.0,0.00014081,2]
[401381054,1768169296551,-151.0,0.00014081,2]
[401381055,1768169296574,-151.0,0.00014081,2]
[401381056,1768169296596,-151.0,0.00014081,2]
[401381057,1768169296619,-151.0,0.00014081,2]
[401381058,1768169296643,-151.0,0.00014081,2]
[401381059,1768169296665,-151.0,0.00014081,2]
[401381060,1768169296688,-151.0,0.00014081,2]
[401381061,1768169296717,-151.0,0.00014081,2]
[401381062,1768169296740,-151.0,0.00014081,2]
[401381063,1768169296763,-151.0,0.00014081,2]
[401381064,1768169296785,-151.0,0.00014081,2]
[401381065,1768169296812,-151.0,0.00014081,2]
[401381066,1768169296839,-151.0,0.00014081,2]
[401381067,1768169296864,-151.0,0.00014081,2]
[401381068,1768169296887,-151.0,0.00014081,2]
[401381069,1768169296910,-151.0,0.00014081,2]
[401381070,1768169296934,-151.0,0.00014081,2]
[401381071,1768169296957,-151.0,0.00014081,2]
[401381072,1768169296980,-151.0,0.00014081,2]
[401381073,1768169297004,-151.0,0.00014081,2]
[401381074,1768169297027,-151.0,0.00014081,2]
[401381075,1768169297050,-151.0,0.00014081,2]
[401381076,1768169297073,-151.0,0.00014081,2]
[401381077,1768169297101,-151.0,0.00014081,2]
[401381078,1768169297127,-151.0,0.00014081,2]
[401381079,1768169297151,-151.0,0.00014081,2]
[401381080,1768169297174,-151.0,0.00014081,2]
[401381081,1768169297197,-151.0,0.00014081,2]
[401381082,1768169297220,-151.0,0.00014081,2]
[401381083,1768169297245,-151.0,0.00014081,2]
[401381084,1768169297269,-151.0,0.00014081,2]
[401381085,1768169297293,-151.0,0.00014081,2]
[401381086,1768169297321,-500.0,0.00014086,2]
[401381087,1768169297350,-500.0,0.00014086,2]
[401381088,1768169297379,-500.0,0.00014086,2]
[401381089,1768169297406,-500.0,0.00014086,2]
[401381090,1768169297433,-500.0,0.00014086,2]
[401381091,1768169297461,-500.0,0.00014086,2]
[401381092,1768169297487,-500.0,0.00014086,2]
[401381093,1768169297516,-550.0,0.00014086,2]
[401381094,1768169297544,-500.0,0.00014086,2]
[401381095,1768169297570,-500.0,0.00014086,2]
[401381096,1768169297595,-500.0,0.00014086,2]
[401381097,1768169297621,-398.67744501,0.00014086,2]
[401381098,1768169297646,-500.0,0.00014086,2]
[401381099,1768169297672,-500.0,0.00014086,2]
[401381100,1768169297697,-500.0,0.00014086,2]
[401381101,1768169297722,-500.0,0.00014086,2]
[401381102,1768169297747,-500.0,0.00014086,2]
[401381103,1768169297773,-500.0,0.00014086,2]
[401381104,1768169297800,-500.0,0.00014086,2]
[401381105,1768169297825,-500.0,0.00014086,2]
[401381106,1768169297851,-500.0,0.00014086,2]
[401381107,1768169297876,-334.57272477,0.00014086,2]
[401381108,1768169297900,-266.0,0.00014088,2]
[401381109,1768169297922,-43577.91249884,0.00014088,2]
[401381110,1768169297944,-303.37366323,0.00014089,2]
[401381111,1768169297967,-514.27279391,0.00014089,2]
[401381112,1768169297990,-500.0,0.00014089,2]
[401381113,1768169298012,-500.0,0.00014089,2]
[401381114,1768169298040,-500.0,0.00014089,2]
[401381115,1768169298062,-500.0,0.00014089,2]
[401381116,1768169298084,-500.0,0.00014089,2]
[401381117,1768169298108,-500.0,0.00014089,2]
[401381118,1768169298130,-500.0,0.00014089,2]
[401381119,1768169298153,-500.0,0.00014089,2]
[401381120,1768169298177,-500.0,0.00014089,2]
[401381121,1768169298200,-500.0,0.00014089,2]
[401381122,1768169298223,-500.0,0.00014089,2]
[401381123,1768169298245,-500.0,0.00014089,2]
[401381124,1768169298268,-500.0,0.00014089,2]
[401381125,1768169298291,-500.0,0.00014089,2]
[401381126,1768169298314,-500.0,0.00014089,2]
[401381127,1768169298341,-502.48470698,0.00014089,2]
[401381128,1768169298364,-520.12765794,0.00014089,2]
[401381129,1768169298387,-500.0,0.00014089,2]
[401381130,1768169298411,-500.0,0.00014089,2]
[401381131,1768169298435,-500.0,0.00014089,2]
[401381132,1768169298459,-500.0,0.00014089,2]
[401381133,1768169298484,-500.0,0.00014089,2]
[401381134,1768169298507,-500.0,0.00014089,2]
[401381135,1768169298529,-500.0,0.00014089,2]
[401381136,1768169298552,-504.75868902,0.00014089,2]
[401381137,1768169298576,-500.0,0.00014089,2]
[401381138,1768169298599,-500.0,0.00014089,2]
[401381139,1768169298622,-500.0,0.00014089,2]
[401381140,1768169298645,-447.79190405,0.00014089,2]
[401381141,1768169298668,-500.0,0.00014089,2]
[401381142,1768169298690,-500.0,0.00014089,2]
[401381143,1768169298712,-502.70237126,0.00014089,2]
[401381144,1768169298734,-500.0,0.00014089,2]
[401381145,1768169298756,-500.0,0.00014089,2]
[401381146,1768169298778,-500.0,0.00014089,2]
[401381147,1768169298799,-500.0,0.00014089,2]
[401381148,1768169298821,-500.0,0.00014089,2]
[401381149,1768169298844,-517.58562247,0.00014089,2]
[401381150,1768169298868,-500.0,0.00014089,2]
[401381151,1768169298891,-500.0,0.00014089,2]
[401381152,1768169298913,-500.0,0.00014089,2]
[401381153,1768169298935,-500.0,0.00014089,2]
[401381154,1768169298956,-311.70071301,0.00014089,2]
[401381155,1768169298980,-404.03665319,0.00014089,2]
[401381156,1768169299002,-404.03665319,0.00014089,2]